bitfinex/quotes_ETHUSD_20260304
["timestamp","ask_amount","ask_price","bid_price","bid_amount"]
[1772625741127,1.21465358,2058.2,2057.6,4.33895164]
[1772625741830,1.21465358,2058.2,2057.6,3.12394711]
[1772625742133,4.27059486,2058.2,2057.6,4.33892615]
[1772625742912,4.27059486,2058.2,2057.6,3.12394711]
[1772625743117,4.27059486,2058.2,2057.6,4.3389496]
[1772625743948,4.27059486,2058.2,2057.6,3.12394711]
[1772625744341,4.27059486,2058.2,2057.6,4.33893291]
[1772625746946,3.00847671,2058.1,2057.6,3.12394711]
[1772625747251,4.22313029,2058.2,2057.7,3.15624987]
[1772625748127,4.22313029,2058.2,2057.7,3.15724987]
[1772625748551,0.002,2058.0,2057.7,3.15724987]
[1772625748747,0.002,2058.0,2057.7,4.37219015]
[1772625749052,0.002,2058.3,2057.7,4.37219015]
[1772625749053,0.002,2058.2,2057.8,3.15624987]
[1772625749247,1.21665792,2058.2,2057.8,3.15624987]
[1772625749454,1.21665792,2058.2,2057.7,1.21594028]
[1772625749455,4.22513463,2058.2,2057.7,0.001]
[1772625749627,4.22513463,2058.2,2057.7,1.21594755]
[1772625749827,4.22513463,2058.2,2057.7,0.001]
[1772625750250,3.00847671,2058.1,2057.7,0.001]
[1772625750556,3.00847671,2057.9,2057.5,0.001]
[1772625750722,3.00847671,2057.7,2057.3,0.001]
[1772625750927,3.00847671,2057.5,2057.0,0.001]
[1772625751721,3.00847671,2057.3,2057.0,0.001]
[1772625752158,0.94,2057.2,2057.0,0.001]
[1772625752453,0.94,2057.2,2056.8,0.001]
[1772625752454,2.85534697,2057.1,2056.8,0.001]
[1772625752754,3.00847671,2057.0,2056.8,0.001]
[1772625753125,3.00847671,2057.0,2056.5,0.001]
[1772625754449,3.00847671,2056.8,2056.5,0.001]
[1772625754857,3.94947671,2056.8,2056.5,0.001]
[1772625755356,3.00847671,2057.4,2056.5,3.15724987]
[1772625755526,3.00847671,2057.3,2056.5,3.15724987]
[1772625756353,3.00847671,2057.1,2056.5,0.001]
[1772625756939,3.00847671,2056.9,2056.5,0.001]
[1772625758533,1.21548035,2056.8,2056.5,0.001]
[1772625758848,3.00847671,2056.7,2056.5,0.001]
[1772625760234,4.22393072,2056.9,2056.5,0.001]
[1772625760439,4.22393072,2056.9,2056.3,0.001]
[1772625760440,3.00847671,2056.6,2056.3,0.001]
[1772625760762,3.00847671,2056.4,2055.7,0.001]
[1772625761967,3.00847671,2056.1,2055.5,0.001]
[1772625762135,3.00847671,2055.8,2055.3,0.001]
[1772625762542,3.00847671,2055.6,2055.3,0.001]
[1772625762765,0.946,2055.5,2055.3,0.001]
[1772625763240,3.00847671,2055.6,2055.3,0.001]
[1772625763439,1.21599936,2056.0,2055.3,3.15724987]
[1772625763781,3.00847671,2055.9,2055.3,3.15724987]
[1772625764664,3.00847671,2055.9,2055.4,1.21630826]
[1772625764665,4.22451399,2055.9,2055.4,1.21630826]
[1772625764855,4.22451399,2055.9,2055.3,4.37357337]
[1772625765444,4.22451399,2055.9,2055.3,3.15724987]
[1772625765646,4.22451399,2055.9,2055.3,4.37361173]
[1772625766446,3.00847671,2055.9,2055.3,4.37361173]
[1772625766641,4.2244924,2055.9,2055.3,4.37361173]
[1772625767166,3.00847671,2055.9,2055.3,4.37361173]
[1772625767554,4.22449116,2055.9,2055.3,4.37361173]
[1772625767749,3.00847671,2055.9,2055.3,4.37361173]
[1772625768076,0.946,2056.1,2055.4,3.15624987]
[1772625768247,2.16190296,2056.1,2055.4,3.15624987]
[1772625769052,0.946,2056.1,2055.5,1.21624908]
[1772625769252,0.949,2056.3,2055.6,2.91372156]
[1772625769475,2.91338601,2056.6,2055.6,2.91372156]
[1772625769678,0.949,2056.5,2055.6,2.91372156]
[1772625770541,3.86238601,2056.5,2055.6,2.91372156]
[1772625770947,3.86238601,2056.5,2055.8,2.91372156]
[1772625771354,5.07893425,2056.7,2055.8,2.91372156]
[1772625773252,2.91338601,2056.6,2055.8,1.21604104]
[1772625773574,2.91338601,2056.6,2055.6,1.21614372]
[1772625774265,2.91338601,2056.6,2055.7,0.001]
[1772625774588,2.91338601,2056.6,2055.3,5.94246478]
[1772625774589,2.91338601,2056.1,2055.3,0.001]
[1772625774790,2.91338601,2055.9,2055.5,0.001]
[1772625774964,3.86438601,2055.9,2055.5,0.001]
[1772625775159,3.86438601,2056.1,2055.5,4.13091722]
[1772625775375,2.91338601,2056.0,2055.5,0.001]
[1772625776894,2.91338601,2056.0,2055.5,1.21723451]
[1772625777098,3.86538601,2056.0,2055.5,0.001]
[1772625777396,1.21601245,2055.9,2055.5,0.001]
[1772625778396,2.91338601,2055.8,2055.3,0.001]
[1772625778576,1.21601245,2055.9,2055.3,0.001]
[1772625778783,0.952,2055.8,2055.3,0.001]
[1772625779276,1.21613075,2055.7,2055.3,0.001]
[1772625780078,4.12951676,2055.7,2055.3,0.001]
[1772625780599,2.91338601,2055.9,2055.3,0.001]
[1772625780776,0.953,2055.8,2055.3,2.91472156]
[1772625781402,0.953,2055.8,2055.4,1.21630826]
[1772625781590,2.16907315,2055.8,2055.3,4.13104117]
[1772625781785,1.21607315,2055.8,2055.3,4.13104117]
[1772625782198,5.08341197,2055.9,2055.3,4.13104117]
[1772625783003,3.86738601,2055.9,2055.3,4.13104117]
[1772625783376,5.08341152,2055.9,2055.3,4.13104117]
[1772625783903,2.91338601,2056.1,2055.4,2.91372156]
[1772625784105,1.21769596,2056.5,2055.4,2.91372156]
[1772625784307,0.002,2056.5,2055.6,2.91372156]
[1772625785799,0.002,2056.5,2055.8,2.91372156]
[1772625787006,0.002,2056.3,2055.8,2.91372156]
[1772625788010,0.002,2056.3,2055.9,4.12973401]
[1772625788398,0.002,2056.3,2055.9,1.21601245]
[1772625788598,2.91538601,2056.3,2055.7,4.12982392]
[1772625789308,2.91538601,2056.3,2055.7,2.91372156]
[1772625789517,2.91538601,2056.3,2055.6,0.001]
[1772625789734,2.91338601,2056.1,2055.2,0.001]
[1772625789892,2.91338601,2055.9,2055.2,0.001]
[1772625790092,2.91338601,2055.7,2055.2,0.001]
[1772625791018,2.91338601,2055.7,2055.1,0.001]
[1772625791217,2.91338601,2055.7,2054.8,0.001]
[1772625792213,2.91338601,2055.5,2054.8,0.001]
[1772625794245,2.91338601,2055.3,2054.8,0.001]
[1772625794414,3.87038601,2055.3,2054.8,0.001]
[1772625794613,0.957,2055.3,2054.8,0.001]
[1772625794822,1.21630826,2055.4,2054.8,0.001]
[1772625795144,2.17330826,2055.4,2054.8,0.001]
[1772625795309,1.21630826,2055.4,2054.8,2.91472156]
[1772625795513,0.957,2055.8,2054.8,2.91472156]
[1772625795843,4.12932444,2056.1,2055.0,2.91372156]
[1772625796409,2.17393843,2056.1,2055.2,2.91372156]
[1772625796638,5.08732444,2056.1,2055.2,2.91372156]
[1772625796836,2.91338601,2056.0,2055.2,2.91372156]
[1772625797027,2.91338601,2056.0,2055.1,1.21648581]
[1772625797427,2.91338601,2056.0,2055.0,1.21650122]
[1772625797615,2.91338601,2055.8,2054.8,1.21763321]
[1772625798218,2.91338601,2055.8,2054.8,0.001]
[1772625798633,3.01508849,2055.6,2054.8,0.001]
[1772625798833,3.97308849,2055.5,2054.8,0.001]
[1772625799043,3.97308849,2055.5,2055.0,0.001]
[1772625800718,1.21630826,2055.4,2055.0,0.001]
[1772625800942,0.959,2055.4,2055.0,0.001]
[1772625802755,3.01508849,2055.6,2055.0,0.001]
[1772625802928,1.21624908,2055.5,2055.0,0.001]
[1772625804256,0.96,2055.4,2054.8,0.001]
[1772625804551,3.80938147,2055.4,2054.8,0.001]
[1772625804952,1.21636744,2055.3,2054.8,0.001]
[1772625805252,2.84938147,2055.3,2054.8,0.001]
[1772625806620,1.21628667,2055.5,2054.8,2.98307798]
[1772625806846,5.82548824,2055.8,2055.0,2.98207798]
[1772625808000,8.67486971,2055.8,2055.0,2.98207798]
[1772625808382,8.67486971,2055.8,2054.8,4.86741685]
[1772625808383,2.84938147,2055.7,2054.8,1.21763126]
[1772625808965,1.21618992,2055.6,2054.8,1.21763126]
[1772625809270,4.06557139,2055.6,2054.8,0.001]
[1772625809658,4.06557139,2055.6,2054.8,2.98307798]
[1772625810884,2.84938147,2055.5,2054.8,2.98307798]
[1772625811065,4.06568973,2055.4,2054.8,0.001]
[1772625811265,5.02968973,2055.4,2055.0,0.001]
[1772625811987,1.2182959,2055.5,2055.0,2.98307798]
[1772625812188,0.002,2055.5,2055.0,2.98307798]
[1772625812489,1.21593691,2056.1,2055.1,2.98207798]
[1772625812653,1.21593691,2056.1,2055.2,2.98207798]
[1772625813385,4.86339674,2056.2,2055.4,2.98207798]
[1772625815310,7.71277821,2056.2,2055.4,2.98207798]
[1772625816317,2.84938147,2055.9,2055.0,0.001]
[1772625816482,7.71277821,2056.2,2055.1,2.98207798]
[1772625816683,0.968,2056.0,2055.1,2.98207798]
[1772625816891,0.002,2056.0,2055.3,2.98207798]
[1772625817997,2.85138147,2056.0,2055.0,5.27856532]
[1772625818914,1.21601245,2055.9,2055.1,2.98207798]
[1772625819411,1.2179968,2056.0,2055.1,2.98207798]
[1772625819788,0.002,2056.0,2055.1,2.98207798]
[1772625820194,0.002,2056.3,2055.2,2.98207798]
[1772625820418,1.21777869,2056.3,2055.2,2.98207798]
[1772625820589,0.002,2056.3,2055.2,2.98207798]
[1772625820788,1.21777738,2056.3,2055.4,2.98207798]
[1772625821720,2.84938147,2056.2,2055.4,2.98207798]
[1772625822798,1.21589416,2056.1,2055.5,1.21624908]
[1772625822997,1.21778516,2056.3,2055.6,2.98207798]
[1772625823418,0.002,2056.3,2055.6,2.98207798]
[1772625823718,1.21778141,2056.3,2055.6,2.98207798]
[1772625823928,1.21778141,2056.3,2055.7,2.98207798]
[1772625824720,0.002,2056.0,2055.7,2.98207798]
[1772625825022,0.002,2056.0,2055.8,1.2160716]
[1772625826185,0.002,2056.5,2055.9,2.98207798]
[1772625826614,0.002,2056.7,2055.9,2.98207798]
[1772625826918,0.002,2056.7,2056.1,2.98207798]
[1772625828708,0.002,2056.7,2056.0,1.2159533]
[1772625829114,1.21739797,2057.0,2056.3,2.86669419]
[1772625829500,1.21529088,2057.2,2056.3,2.86669419]
[1772625830203,2.73224071,2057.1,2056.3,2.86669419]
[1772625830401,2.73224071,2057.1,2056.2,1.21583503]
[1772625830603,2.73224071,2057.1,2056.1,2.29585267]
[1772625831004,2.73224071,2056.9,2056.1,1.08]
[1772625831206,2.73224071,2056.9,2056.1,2.29589069]
[1772625832110,2.73224071,2056.9,2056.1,1.08]
[1772625832423,2.73224071,2056.9,2056.0,4.08259477]
[1772625832424,2.73224071,2056.9,2056.0,2.86669419]
[1772625832627,2.73224071,2056.9,2055.9,1.21598807]
[1772625832925,2.73224071,2056.9,2055.8,1.21602412]
[1772625833232,2.73224071,2056.7,2055.8,2.86669419]
[1772625834398,1.21548035,2056.8,2055.8,2.86669419]
[1772625834814,3.94772106,2056.8,2055.8,2.86669419]
[1772625835023,2.73224071,2056.7,2055.8,2.86669419]
[1772625835407,2.73224071,2056.5,2055.6,0.001]
[1772625835600,2.73224071,2056.5,2055.6,1.21714863]
[1772625836625,2.73224071,2056.5,2055.6,4.08384282]
[1772625836837,1.21559856,2056.6,2055.7,2.86669419]
[1772625837234,3.94783927,2056.6,2055.7,2.86669419]
[1772625837618,3.94783927,2056.6,2056.0,0.001]
[1772625838425,1.21559856,2056.6,2056.0,0.001]
[1772625838747,3.94783927,2056.6,2056.0,0.001]
[1772625839449,1.21559856,2056.6,2056.0,2.86769419]
[1772625839744,1.21748035,2056.8,2056.2,2.86669419]
[1772625840045,0.974,2057.0,2056.2,2.86669419]
[1772625840046,1.21740685,2057.0,2056.2,2.86669419]
[1772625840630,1.21736488,2057.0,2056.2,2.86669419]
[1772625840814,1.2153444,2057.1,2056.2,2.86669419]
[1772625841467,1.21528285,2057.2,2056.2,2.86669419]
[1772625841945,4.86280147,2057.3,2056.4,2.86669419]
[1772625842353,2.73224071,2057.1,2056.0,4.08360545]
[1772625842648,2.73224071,2056.9,2056.0,0.001]
[1772625842822,2.73224071,2056.7,2056.0,0.001]
[1772625843663,2.73224071,2056.5,2055.8,0.001]
[1772625844148,2.73224071,2056.3,2055.8,0.001]
[1772625844522,2.73224071,2056.2,2055.8,0.001]
[1772625846126,2.73224071,2056.0,2055.8,0.001]
[1772625846532,2.73224071,2056.0,2055.6,0.001]
[1772625847144,2.73224071,2055.8,2055.4,0.001]
[1772625847442,2.73224071,2055.7,2055.4,0.001]
[1772625848062,1.21618992,2055.6,2055.4,0.001]
[1772625849061,2.73224071,2055.5,2055.1,0.001]
[1772625849465,2.73224071,2055.5,2054.6,1.21574936]
[1772625849638,2.73224071,2055.5,2054.6,4.08244355]
[1772625849838,2.73224071,2055.5,2054.6,2.86669419]
[1772625850075,1.21630826,2055.4,2054.7,4.08337189]
[1772625850369,4.86464698,2055.7,2054.8,2.86669419]
[1772625850558,4.86464698,2055.7,2055.4,0.001]
[1772625851065,1.2159533,2056.0,2055.4,2.86769419]
[1772625851434,1.21793525,2056.1,2055.4,2.86769419]
[1772625851668,0.002,2056.1,2055.4,2.86769419]
[1772625851930,0.002,2056.3,2055.4,2.86769419]
[1772625852074,1.56100136,2056.5,2055.7,2.86669419]
[1772625852504,0.002,2056.6,2055.8,2.86669419]
[1772625853004,1.21760286,2056.6,2055.8,2.86669419]
[1772625854005,0.002,2056.6,2056.0,2.86669419]
[1772625854413,1.21524402,2057.2,2056.2,2.86669419]
[1772625857717,1.21524402,2057.2,2056.3,4.08247009]
[1772625857914,1.21524402,2057.2,2056.3,2.86669419]
[1772625858119,3.94748473,2057.2,2056.3,2.86669419]
[1772625860031,3.94748473,2057.2,2056.3,4.08245834]
[1772625860402,3.94748473,2057.2,2056.3,4.08246948]
[1772625860723,2.66760134,2057.1,2056.3,4.08246937]
[1772625860922,0.983,2057.1,2056.3,4.08246937]
[1772625861133,2.66760134,2057.0,2055.8,3.88270413]
[1772625861427,2.66760134,2057.0,2055.9,2.66668233]
[1772625861609,2.19924402,2057.2,2055.9,2.66668233]
[1772625862201,4.86684536,2057.2,2056.1,2.66668233]
[1772625862521,2.66760134,2057.1,2056.1,2.66668233]
[1772625863027,2.66760134,2057.1,2056.5,0.001]
[1772625863206,0.002,2057.0,2056.5,0.001]
[1772625863926,0.002,2057.0,2056.5,2.83812548]
[1772625864326,2.82469002,2057.0,2056.5,0.001]
[1772625864516,0.985,2056.9,2056.5,0.001]
[1772625864824,0.002,2057.0,2056.5,2.83812548]
[1772625866623,2.82469002,2057.0,2056.5,0.001]
[1772625866938,2.82469002,2057.0,2055.4,0.001]
[1772625866939,2.82269002,2056.6,2055.4,0.001]
[1772625867136,2.82269002,2056.6,2054.6,2.83712548]
[1772625867137,2.82269002,2056.2,2054.6,2.83712548]
[1772625867434,2.82269002,2055.8,2055.1,8.67554408]
[1772625867633,0.987,2055.7,2055.1,8.67554408]
[1772625867932,3.80969002,2055.7,2055.1,8.67554408]
[1772625868139,2.82269002,2055.6,2054.6,2.83712548]
[1772625868541,4.0389391,2055.5,2054.5,0.001]
[1772625868837,8.67468637,2055.7,2054.5,2.83812548]
[1772625869034,4.86499635,2055.6,2054.5,2.83812548]
[1772625870100,4.86499635,2055.6,2054.6,2.83712548]
[1772625870502,1.21630826,2055.4,2054.5,1.079]
[1772625870729,4.03899828,2055.4,2054.5,1.079]
[1772625871239,4.03899828,2055.4,2054.5,0.001]
[1772625871448,2.67986038,2055.3,2054.5,0.001]
[1772625871610,3.81369002,2055.2,2054.5,0.001]
[1772625872722,4.03917583,2055.1,2054.2,0.001]
[1772625874231,2.82269002,2055.0,2054.2,0.001]
[1772625874708,1.21660421,2054.9,2054.2,0.001]
[1772625875414,2.82269002,2054.8,2054.2,0.001]
[1772625876026,2.82269002,2054.6,2053.9,0.001]
[1772625876236,2.82269002,2054.6,2053.5,6.82562867]
[1772625876549,2.82269002,2054.4,2052.8,3.86494834]
[1772625876750,2.82269002,2054.4,2052.8,4.05497023]
[1772625876751,1.21713729,2054.0,2052.8,4.05497023]
[1772625876918,1.21713729,2054.0,2052.9,2.83712548]
[1772625877514,4.03982731,2054.0,2053.9,0.001]
[1772625877714,2.82269002,2053.9,2052.9,2.83712548]
[1772625878940,1.21725581,2053.8,2053.0,4.05485563]
[1772625879112,1.21725581,2053.8,2052.7,4.87151446]
[1772625879113,1.21725581,2053.8,2052.8,4.87123656]
[1772625879310,1.21725581,2053.8,2052.9,2.83712548]
[1772625881047,2.82269002,2053.8,2052.9,2.83712548]
[1772625881424,2.82269002,2053.8,2052.9,4.05489757]
[1772625881628,4.86902327,2054.0,2053.0,2.83712548]
[1772625883036,4.86902327,2054.0,2052.7,4.87162861]
[1772625883037,2.82269002,2053.7,2052.7,4.05502649]
[1772625883231,2.82269002,2053.7,2052.8,2.83712548]
[1772625883542,1.21725581,2053.8,2052.8,2.83712548]
[1772625885241,4.86902327,2053.9,2053.0,2.83712548]
[1772625885851,7.69171329,2053.9,2053.0,2.83712548]
[1772625886426,4.86902327,2053.9,2053.0,2.83712548]
[1772625886741,2.82269002,2053.8,2053.0,2.83712548]
[1772625887241,2.82269002,2053.8,2052.8,1.2178183]
[1772625887242,4.0400051,2053.7,2052.7,4.05503117]
[1772625887447,2.82269002,2053.6,2052.3,5.48425983]
[1772625887650,2.82269002,2053.6,2052.4,2.83712548]
[1772625887818,2.82269002,2053.3,2052.2,1.092]
[1772625888019,2.21931508,2053.7,2051.8,3.18106891]
[1772625888020,2.82269002,2053.0,2051.8,3.18106891]
[1772625889119,2.82269002,2053.0,2051.8,2.83712548]
[1772625889519,3.26543035,2052.8,2051.8,2.83712548]
[1772625889724,3.26543035,2052.8,2051.7,2.31049042]
[1772625889725,3.26543035,2052.8,2051.7,1.092]
[1772625889948,3.26543035,2052.8,2052.7,0.001]
[1772625890142,3.26543035,2052.8,2051.7,2.31049735]
[1772625890732,2.73097499,2052.9,2051.8,3.32582251]
[1772625890935,1.51318553,2052.9,2051.8,3.32582251]
[1772625891118,1.21755223,2053.3,2051.9,3.32582251]
[1772625891862,4.87020893,2053.5,2052.2,3.32582251]
[1772625892035,4.87020893,2053.5,2052.4,3.32582251]
[1772625892935,2.35396954,2053.6,2052.4,3.32582251]
[1772625893140,2.35392298,2053.6,2052.4,3.32582251]
[1772625893731,2.35392298,2053.6,2052.6,4.54378996]
[1772625893934,2.35392298,2053.6,2052.7,3.32582251]
[1772625896133,2.35392298,2053.6,2052.8,1.21784879]
[1772625896333,1.13654843,2053.6,2052.9,3.32582251]
[1772625896544,2.35394795,2053.6,2052.9,3.32582251]
[1772625896959,1.13654843,2053.6,2052.9,3.32582251]
[1772625897140,1.21728894,2053.8,2052.9,3.32582251]
[1772625897658,4.48271929,2053.8,2052.9,3.32582251]
[1772625897858,4.48271929,2053.8,2053.0,1.096]
[1772625898259,1.21737436,2053.6,2053.0,1.096]
[1772625898764,4.48280471,2053.6,2052.7,1.096]
[1772625899275,3.26543035,2053.5,2052.7,1.096]
[1772625900464,1.21749293,2053.4,2052.7,1.096]
[1772625901901,0.002,2053.7,2052.8,3.32582251]
[1772625902173,3.26543035,2054.1,2052.7,2.31390583]
[1772625902369,0.002,2053.9,2053.1,3.32582251]
[1772625903544,3.26743035,2053.9,2053.0,1.098]
[1772625905272,4.05456389,2053.8,2053.0,2.31569798]
[1772625905444,1.21725581,2053.8,2053.0,2.31569798]
[1772625905640,1.21725581,2053.8,2053.0,2.31572599]
[1772625905835,1.21725581,2053.8,2053.0,1.098]
[1772625906958,4.48268616,2053.8,2053.0,2.31572492]
[1772625907667,4.48268616,2053.8,2053.0,1.098]
[1772625907850,4.48268616,2053.8,2053.0,2.31572724]
[1772625909175,3.26543035,2053.7,2053.0,1.098]
[1772625909485,4.48286399,2053.5,2053.0,1.098]
[1772625909698,4.48286399,2053.5,2052.7,1.099]
[1772625910692,2.43104838,2053.4,2052.7,1.099]
[1772625911268,1.21743364,2053.5,2052.8,3.32582251]
[1772625911462,4.86973459,2053.6,2052.8,3.32582251]
[1772625911763,2.8360135,2053.5,2052.8,4.54367129]
[1772625912188,11.33949746,2054.0,2053.0,3.32582251]
[1772625912189,1.21925581,2053.9,2053.0,3.32582251]
[1772625912500,1.21923413,2053.9,2053.0,3.32582251]
[1772625912796,1.21921388,2053.9,2053.0,3.32582251]
[1772625913590,4.87009489,2054.2,2053.2,3.32582251]
[1772625913591,0.002,2054.2,2053.2,3.32582251]
[1772625913764,0.002,2054.2,2053.4,3.32582251]
[1772625914692,0.002,2053.7,2053.4,3.32582251]
[1772625915576,0.002,2053.9,2053.6,3.32582251]
[1772625915776,0.002,2054.2,2053.6,3.32582251]
[1772625917193,1.21684108,2054.5,2053.6,3.32582251]
[1772625917786,1.5434623,2054.6,2053.8,3.32582251]
[1772625917972,1.5434623,2054.6,2054.0,3.32582251]
[1772625919704,1.5434623,2054.6,2054.1,3.39540094]
[1772625921307,1.2164289,2055.2,2054.3,3.39540094]
[1772625921510,0.002,2055.3,2054.5,3.39540094]
[1772625921812,1.21617885,2055.7,2054.8,3.39540094]
[1772625921990,1.21583503,2056.2,2055.0,3.39540094]
[1772625923379,2.48257042,2056.1,2055.0,3.39540094]
[1772625924009,3.69852372,2056.0,2055.0,3.39540094]
[1772625924806,1.2159533,2056.0,2055.1,3.41402999]
[1772625924997,1.2157759,2056.3,2055.1,3.41402999]
[1772625925884,4.86241019,2056.6,2055.3,3.41402999]
[1772625926691,2.46664838,2056.5,2055.3,3.41402999]
[1772625927310,1.21553945,2056.7,2055.3,3.41402999]
[1772625927700,0.002,2056.2,2055.3,3.41402999]
[1772625927916,1.21553945,2056.7,2055.3,3.41402999]
[1772625927917,4.86215782,2056.8,2055.5,3.41402999]
[1772625928117,4.86215782,2056.8,2055.7,3.41402999]
[1772625928315,0.002,2056.5,2055.7,3.41402999]
[1772625928817,0.002,2056.5,2055.7,4.51502999]
[1772625929383,0.002,2056.5,2055.8,3.41402999]
[1772625929580,0.002,2056.5,2055.7,1.101]
[1772625930587,2.44776552,2056.3,2055.2,3.41402999]
[1772625930798,2.44776552,2056.3,2055.0,1.101]
[1772625931486,2.44250357,2056.1,2055.0,1.101]
[1772625932591,3.6558622,2056.0,2054.9,3.41402999]
[1772625933002,2.4399089,2055.9,2054.9,3.41402999]
[1772625933609,1.2159533,2056.0,2055.0,3.41402999]
[1772625933811,1.2159533,2056.0,2055.2,3.41402999]
[1772625934622,4.86381322,2056.2,2055.3,3.41402999]
[1772625934826,4.86381322,2056.3,2055.3,3.41402999]
[1772625936620,7.2865375,2056.5,2055.3,3.41402999]
[1772625936789,7.2865375,2056.5,2055.3,4.6303937]
[1772625936991,7.2865375,2056.5,2055.4,3.41402999]
[1772625937825,4.86510363,2056.5,2055.4,3.41402999]
[1772625938708,4.86510363,2056.5,2055.5,3.41402999]
[1772625939907,0.002,2056.3,2055.5,3.41402999]
[1772625941123,0.002,2056.3,2055.6,3.41402999]
[1772625942309,2.39121261,2056.3,2055.4,0.001]
[1772625942510,2.39121261,2056.3,2055.2,3.41402999]
[1772625943035,1.21583503,2056.2,2055.3,3.41402999]
[1772625943230,3.59593173,2056.2,2055.3,3.41402999]
[1772625943412,2.3800967,2056.1,2055.1,0.001]
[1772625943625,2.3800967,2056.0,2055.1,0.001]
[1772625944005,2.3800967,2055.8,2055.1,0.001]
[1772625945032,4.04323246,2055.7,2055.1,0.001]
[1772625945213,2.82932969,2055.6,2055.1,0.001]
[1772625945538,5.19842221,2055.6,2054.9,0.001]
[1772625945746,2.36909252,2055.6,2054.9,0.001]
[1772625946128,2.82869802,2055.5,2054.9,0.001]
[1772625946730,5.19228425,2055.5,2054.9,0.001]
[1772625946944,5.19228425,2055.4,2054.9,0.001]
[1772625947144,1.21636744,2055.3,2054.9,0.001]
[1772625948550,3.56919091,2055.3,2054.4,3.41402999]
[1772625948757,3.56919091,2055.3,2054.3,1.099]
[1772625948758,2.35282347,2055.1,2054.3,1.099]
[1772625949070,1.21660421,2054.9,2054.0,0.001]
[1772625949228,6.18643187,2054.8,2054.0,0.001]
[1772625949533,3.35517348,2054.6,2053.7,0.001]
[1772625949736,3.35517348,2054.4,2053.7,0.001]
[1772625951145,1.21695954,2054.3,2053.7,0.001]
[1772625951338,3.35517348,2054.2,2053.1,3.3444]
[1772625951535,6.18142666,2054.1,2053.1,3.3444]
[1772625951728,3.35517348,2054.1,2053.1,3.3444]
[1772625952560,3.35517348,2054.1,2053.1,4.56206806]
[1772625953054,3.35517348,2054.1,2053.9,0.001]
[1772625953226,4.57231077,2054.0,2053.1,4.56206875]
[1772625953430,4.57231077,2054.0,2053.6,0.001]
[1772625953639,4.57231077,2054.0,2053.1,3.3444]
[1772625953963,4.57231077,2054.0,2053.4,0.001]
[1772625954654,1.21713729,2054.0,2053.4,0.001]
[1772625954956,4.86814166,2054.2,2053.4,3.3454]
[1772625955329,0.002,2054.4,2053.5,3.3444]
[1772625957238,0.002,2054.4,2053.7,3.3444]
[1772625959351,0.002,2054.4,2053.9,3.3444]
[1772625960836,0.002,2054.6,2054.0,3.3444]
[1772625961031,1.21860421,2054.9,2054.2,3.3444]
[1772625961440,0.002,2054.9,2054.4,3.3444]
[1772625963080,0.002,2054.9,2054.1,6.04910082]
[1772625963360,3.35517348,2054.7,2053.8,4.4424]
[1772625963536,3.35517348,2054.7,2053.8,1.098]
[1772625964246,3.35517348,2054.7,2053.8,2.31525387]
[1772625964769,1.21666342,2054.8,2053.9,3.3444]
[1772625966974,8.22382716,2054.9,2054.0,1.21713729]
[1772625967139,0.002,2054.5,2054.0,1.21713729]
[1772625967337,3.35717348,2054.5,2053.4,0.001]
[1772625967534,3.35717348,2054.5,2053.6,0.001]
[1772625968653,3.35517348,2054.3,2053.6,0.001]
[1772625969053,1.21701879,2054.2,2053.6,0.001]
[1772625970687,4.86807516,2054.4,2053.6,3.3454]
[1772625970688,4.86777206,2054.4,2053.6,3.3454]
[1772625971185,1.21890031,2054.5,2053.6,4.56272522]
[1772625972780,1.21890031,2054.5,2053.6,1.21832522]
[1772625972973,0.002,2054.5,2053.9,3.3444]
[1772625973168,0.002,2054.5,2054.0,4.4454]
[1772625973556,0.002,2054.5,2054.0,1.101]
[1772625974279,0.002,2054.7,2054.1,3.3444]
[1772625974802,0.002,2054.7,2053.9,1.101]
[1772625975288,0.002,2054.7,2054.0,1.21713729]
[1772625975655,0.002,2054.7,2053.9,2.31815885]
[1772625975862,0.002,2054.9,2054.2,3.3444]
[1772625976063,1.21861344,2054.9,2054.2,3.3444]
[1772625976291,0.002,2054.9,2054.2,3.3444]
[1772625977050,1.21861117,2054.9,2054.2,3.3444]
[1772625977207,0.002,2054.9,2054.3,1.21695954]
[1772625977862,0.002,2054.9,2054.4,1.102]
[1772625978280,0.002,2054.9,2054.4,4.23118136]
[1772625978474,0.002,2054.9,2054.5,3.12918136]
[1772625978777,0.002,2054.9,2054.6,1.102]
[1772625979209,1.21666342,2054.8,2054.3,1.102]
[1772625979518,3.20542149,2054.7,2054.3,1.102]
[1772625979924,3.20742149,2054.7,2054.0,0.001]
[1772625980290,0.002,2054.7,2054.0,3.13018136]
[1772625980785,0.002,2054.9,2054.2,3.12918136]
[1772625980997,1.21861404,2054.9,2054.2,3.12918136]
[1772625981203,1.21861404,2054.9,2054.3,1.103]
[1772625981204,0.002,2054.9,2054.3,1.103]
[1772625981611,3.20742149,2054.9,2054.3,1.103]
[1772625982888,0.002,2054.9,2054.3,1.103]
[1772625984551,0.002,2054.9,2054.3,4.53803714]
[1772625986061,0.002,2054.9,2054.3,5.754942]
[1772625987946,0.002,2054.9,2054.4,3.43503714]
[1772625988459,0.002,2054.9,2054.4,4.65189836]
[1772625989046,0.002,2054.9,2054.5,3.43503714]
[1772625989253,0.002,2054.9,2054.4,1.21686122]
[1772625990150,0.002,2054.9,2054.4,4.65189836]
[1772625991456,0.002,2054.9,2054.5,3.43503714]
[1772625992748,0.002,2054.9,2054.5,4.65186654]
[1772625993853,3.2109739,2054.9,2054.1,1.21702896]
[1772625994052,3.2109739,2054.9,2054.5,0.001]
[1772625994357,0.002,2054.7,2054.5,0.001]
[1772625995055,0.002,2054.9,2054.5,0.001]
[1772625995230,0.002,2054.9,2054.5,3.43603714]
[1772625996257,1.21861441,2054.9,2054.5,0.001]
[1772625996558,4.42758831,2054.9,2054.6,1.107]
[1772625997079,4.42758831,2054.9,2054.5,1.108]
[1772625997568,1.21861441,2054.9,2054.5,1.108]
[1772625998269,0.002,2054.9,2054.5,1.108]
[1772625998486,0.002,2054.9,2054.5,4.54303714]
[1772625999194,0.002,2055.0,2054.7,3.43503714]
[1772626000257,1.21634334,2055.4,2054.7,3.43503714]